bitfinex/quotes_ETHUSD_20250914
["timestamp","ask_amount","ask_price","bid_price","bid_amount"]
[1757823784676,5.455,4646.3,4645.8,0.1072]
[1757823785397,5.455,4646.3,4645.8,2.2596607]
[1757823785602,5.455,4646.3,4645.8,0.1072]
[1757823785792,5.9062,4646.3,4645.8,0.1072]
[1757823785994,5.9062,4646.3,4646.1,2.15233884]
[1757823786169,0.3138,4646.2,4646.1,2.15233884]
[1757823786368,0.3138,4646.2,4645.8,2.25967912]
[1757823786674,0.3138,4646.2,4646.0,2.15238676]
[1757823787473,0.3138,4646.2,4645.8,2.2596411]
[1757823787905,0.9383,4646.1,4645.8,0.1072]
[1757823788202,0.3138,4645.9,4645.1,0.4494]
[1757823788383,4.1148,4645.9,4645.1,0.4494]
[1757823788578,4.1148,4645.9,4645.7,2.15252718]
[1757823788780,4.1148,4645.9,4645.5,2.1525839]
[1757823788987,4.1148,4645.9,4645.1,2.60218801]
[1757823789190,4.1148,4645.9,4645.5,2.15261852]
[1757823789597,4.1148,4645.9,4645.1,0.001]
[1757823789789,4.6019,4645.9,4645.2,2.1527559]
[1757823789985,4.6019,4645.9,4645.1,0.001]
[1757823790212,4.1148,4645.9,4645.2,0.4484]
[1757823790992,4.1148,4645.9,4645.5,2.15261363]
[1757823791177,4.1148,4645.9,4645.2,0.4484]
[1757823791786,4.1148,4645.9,4645.1,0.4552]
[1757823791987,4.1148,4645.9,4645.1,0.001]
[1757823792176,3.801,4645.9,4645.8,0.3145]
[1757823792412,5.452,4646.3,4645.8,0.3145]
[1757823792912,5.9032,4646.3,4645.8,0.3145]
[1757823793114,0.4512,4646.2,4645.5,2.60101771]
[1757823793313,0.4512,4646.2,4645.6,2.15257241]
[1757823793479,0.4512,4646.2,4645.4,2.15266537]
[1757823793679,0.4512,4646.2,4645.5,2.15261295]
[1757823794119,0.4512,4646.2,4645.6,2.15256545]
[1757823794313,0.4512,4646.2,4645.2,2.60114556]
[1757823794516,0.4512,4646.2,4645.4,2.15265787]
[1757823794717,0.4512,4646.2,4645.2,2.60112545]
[1757823794884,0.4512,4646.2,4645.6,2.15257413]
[1757823795416,5.451,4646.3,4645.7,2.15251077]
[1757823795614,5.451,4646.3,4646.1,0.3145]
[1757823798102,1.652,4646.3,4646.1,0.3145]
[1757823798303,5.45,4646.3,4646.1,0.3145]
[1757823798812,5.45,4646.3,4645.8,2.25966627]
[1757823799012,5.45,4646.3,4645.9,2.1524237]
[1757823799686,0.00200001,4646.8,4646.2,0.3137]
[1757823799885,3.797,4646.7,4646.2,0.4209]
[1757823800087,3.797,4646.7,4646.2,2.57318458]
[1757823800801,3.797,4646.7,4646.3,2.15224948]
[1757823801501,3.797,4646.7,4646.6,0.3137]
[1757823802130,3.797,4646.7,4646.3,0.4663]
[1757823802131,0.3036,4646.7,4646.2,2.25945406]
[1757823802329,0.3036,4646.7,4646.2,0.1072]
[1757823802529,0.3036,4646.7,4646.3,2.15222319]
[1757823802716,0.3036,4646.7,4646.2,2.25949411]
[1757823802916,0.3036,4646.7,4646.2,0.1072]
[1757823803323,0.3036,4646.7,4646.2,2.25949048]
[1757823803725,0.00200001,4646.8,4646.6,0.3137]
[1757823804232,0.00200001,4646.8,4646.3,0.4663]
[1757823804437,0.00200001,4646.8,4646.2,0.1072]
[1757823804438,0.3036,4646.5,4646.2,0.1072]
[1757823808145,0.00200001,4646.8,4646.4,0.3137]
[1757823808339,3.79600001,4646.8,4646.4,0.3137]
[1757823808910,0.4418,4646.7,4646.2,0.1072]
[1757823809411,0.4418,4646.6,4646.2,0.1072]
[1757823809947,0.4668,4646.7,4646.2,0.1072]
[1757823810348,3.79600001,4646.8,4646.3,2.15222943]
[1757823810554,3.79600001,4646.8,4646.6,0.3137]
[1757823810840,0.3036,4646.7,4646.2,0.1072]
[1757823811005,0.4418,4646.6,4646.2,0.1072]
[1757823811206,5.94802932,4646.8,4646.2,0.1072]
[1757823811408,5.94802225,4646.8,4646.2,0.1072]
[1757823811609,3.79600001,4646.8,4646.2,0.1072]
[1757823812713,3.79600001,4646.8,4646.2,2.25949367]
[1757823813521,3.79600001,4646.8,4646.2,0.1072]
[1757823814818,3.79600001,4646.8,4646.4,2.15216621]
[1757823815017,3.79600001,4646.8,4646.4,2.61846621]
[1757823815331,3.79600001,4646.8,4646.5,2.15215105]
[1757823816121,0.00200001,4646.8,4646.7,0.3137]
[1757823816359,0.00200001,4646.8,4646.7,2.4657649]
[1757823816654,0.00200001,4646.8,4646.7,2.9320649]
[1757823816860,0.00200001,4646.8,4646.7,3.3844649]
[1757823818560,0.00200001,4646.8,4646.6,2.15210777]
[1757823818747,0.00200001,4646.8,4646.7,2.1520649]
[1757823819092,0.00200001,4646.8,4646.7,2.4657649]
[1757823819556,0.00200001,4646.8,4646.7,2.9320649]
[1757823819928,0.002,4647.3,4647.2,2.15183336]
[1757823820226,0.002,4647.3,4647.2,5.93983336]
[1757823820451,0.002,4647.3,4647.2,7.17223336]
[1757823820958,0.002,4647.3,4646.3,2.15224423]
[1757823820959,1.2142,4647.3,4646.6,2.15210859]
[1757823821159,0.4418,4647.2,4646.6,2.15210859]
[1757823821467,0.3036,4646.7,4646.3,2.15225017]
[1757823821621,0.3036,4646.7,4646.6,2.15211122]
[1757823821826,0.3036,4646.7,4646.6,5.93911122]
[1757823822057,0.002,4646.8,4646.6,5.93911122]
[1757823822373,0.002,4646.8,4646.7,2.1520649]
[1757823822664,0.3036,4646.7,4646.4,2.15216048]
[1757823822875,0.3036,4646.7,4646.6,5.93811122]
[1757823823035,0.3036,4646.7,4646.6,2.15211122]
[1757823823639,0.002,4646.8,4646.7,2.1520649]
[1757823824164,0.002,4646.8,4646.7,2.4657649]
[1757823825663,0.002,4646.8,4646.7,2.9320649]
[1757823826672,0.002,4646.8,4646.7,6.7249649]
[1757823827239,0.002,4646.8,4646.7,7.2216649]
[1757823828472,0.002,4646.8,4646.7,10.2216649]
[1757823828770,0.002,4646.8,4646.7,10.3288649]
[1757823829766,0.002,4647.3,4647.2,2.15183336]
[1757823829954,0.002,4647.3,4647.2,5.93483336]
[1757823830155,0.002,4647.3,4647.2,7.31353336]
[1757823830949,0.002,4647.3,4647.2,6.81683336]
[1757823831186,0.002,4647.3,4647.2,6.34263336]
[1757823831393,0.3067,4647.3,4647.2,6.04203336]
[1757823831759,0.002,4647.3,4647.2,6.04203336]
[1757823832393,0.002,4647.3,4647.2,6.34263336]
[1757823834297,0.002,4647.3,4647.2,6.81683336]
[1757823834669,0.002,4647.3,4647.2,7.31353336]
[1757823834868,0.002,4647.3,4647.2,6.34263336]
[1757823835087,0.3153,4647.3,4647.2,6.04203336]
[1757823835771,0.002,4647.3,4647.2,6.35363336]
[1757823836180,0.002,4647.3,4647.2,6.81413336]
[1757823836587,0.002,4647.3,4647.2,3.49003336]
[1757823836774,0.002,4647.3,4647.2,7.27003336]
[1757823837774,0.002,4647.3,4647.2,6.81113336]
[1757823838909,0.002,4647.3,4647.2,6.35063336]
[1757823839112,0.002,4647.3,4647.2,2.25903336]
[1757823839317,0.7852,4647.3,4647.2,6.03903336]
[1757823839891,0.3153,4647.3,4647.2,6.03903336]
[1757823840105,0.3153,4647.3,4647.2,6.03803336]
[1757823840303,0.002,4647.3,4647.2,6.03803336]
[1757823840982,0.002,4647.3,4647.2,6.34963336]
[1757823841421,0.002,4647.3,4647.2,6.03803336]
[1757823842291,0.002,4647.3,4647.2,6.34963336]
[1757823842694,0.3153,4647.3,4647.2,6.03803336]
[1757823843518,0.7852,4647.3,4647.2,0.1072]
[1757823843694,0.7852,4647.3,4646.6,0.001]
[1757823843695,1.2798,4647.3,4646.6,3.778]
[1757823843893,0.8099,4647.3,4647.0,2.15190978]
[1757823844278,0.8099,4647.3,4647.1,2.15186714]
[1757823844484,1.2798,4647.3,4647.1,2.15186714]
[1757823844816,1.2798,4647.3,4647.1,2.1518762]
[1757823845020,1.2798,4647.3,4647.2,2.15183336]
[1757823845393,1.2798,4647.3,4646.9,3.777]
[1757823845598,0.9645,4647.2,4647.1,2.15187934]
[1757823846237,1.2778,4647.2,4647.1,2.15187934]
[1757823846532,1.2778,4647.2,4646.9,3.777]
[1757823846707,0.9645,4647.1,4647.0,3.776]
[1757823846914,1.2778,4647.1,4646.8,3.776]
[1757823847108,0.9645,4647.0,4646.8,3.776]
[1757823847309,0.3133,4646.9,4646.8,3.776]
[1757823847515,1.2778,4646.9,4646.7,3.776]
[1757823847718,0.4699,4646.8,4646.7,3.776]
[1757823847914,0.7832,4646.8,4646.7,3.776]
[1757823848203,1.2778,4646.8,4646.7,3.776]
[1757823848743,1.2778,4646.8,4646.6,3.777]
[1757823849099,1.2778,4646.8,4646.6,3.776]
[1757823850138,0.9645,4646.7,4646.6,0.001]
[1757823850316,3.1165649,4646.7,4646.6,0.001]
[1757823850511,3.4298649,4646.7,4646.6,0.001]
[1757823851716,4.2218649,4646.7,4646.6,0.001]
[1757823852303,1.2778,4646.7,4646.6,0.001]
[1757823854426,3.4298649,4646.7,4646.6,0.001]
[1757823854622,1.2778,4646.7,4646.6,0.001]
[1757823854835,3.4298649,4646.7,4646.6,0.001]
[1757823856819,1.2778,4646.7,4646.6,0.001]
[1757823857027,3.4298649,4646.7,4646.6,0.001]
[1757823857422,1.2778,4646.7,4646.6,0.001]
[1757823858114,0.1072,4646.8,4646.6,0.3008]
[1757823858320,0.1072,4646.8,4646.6,0.001]
[1757823858524,3.773,4647.0,4646.7,0.2998]
[1757823859415,3.773,4647.0,4646.8,0.4343]
[1757823859612,3.773,4647.0,4646.9,0.2998]
[1757823859919,0.1072,4647.2,4646.9,0.2998]
[1757823861650,0.1072,4647.2,4647.0,0.4343]
[1757823862142,0.1072,4647.2,4647.1,0.2998]
[1757823862347,0.002,4647.3,4647.1,0.2998]
[1757823862348,0.002,4647.3,4647.1,3.36507966]
[1757823862525,0.002,4647.3,4647.2,3.06523336]
[1757823862921,0.002,4647.3,4647.2,3.36503336]
[1757823863530,0.002,4647.3,4647.2,1.2132]
[1757823863860,0.002,4647.3,4647.2,3.36503336]
[1757823869948,0.002,4647.3,4647.2,2.93073336]
[1757823870143,0.002,4647.3,4647.2,7.13203336]
[1757823872336,0.002,4647.3,4647.2,7.23923336]
[1757823881403,0.002,4647.3,4647.2,10.23923336]
[1757823884983,0.002,4648.3,4647.7,2.15160186]
[1757823885215,0.002,4648.3,4648.2,2.45117042]
[1757823885518,0.002,4648.3,4648.2,7.86217042]
[1757823885823,0.002,4648.3,4648.2,8.77937042]
[1757823887194,0.002,4648.3,4648.2,8.32007042]
[1757823887422,0.293,4648.3,4648.2,7.56237042]
[1757823887630,0.293,4648.3,4648.2,7.56137042]
[1757823887937,0.002,4648.3,4648.2,7.86357042]
[1757823889316,0.002,4648.3,4648.2,8.32147042]
[1757823891236,0.002,4648.3,4648.2,7.86357042]
[1757823891411,0.002,4648.3,4648.2,7.56037042]
[1757823891740,0.002,4648.3,4648.2,7.86257042]
[1757823892304,0.002,4648.3,4648.2,8.31947042]
[1757823893611,0.002,4648.3,4648.2,7.55937042]
[1757823893804,0.7903,4648.3,4648.2,7.55837042]
[1757823894004,1.232,4648.3,4648.2,7.55837042]
[1757823894309,0.3143,4648.3,4648.2,7.55837042]
[1757823894716,0.3143,4648.3,4648.2,3.80237042]
[1757823894916,0.3143,4648.3,4648.2,7.55837042]
[1757823895318,0.3143,4648.3,4648.2,7.66557042]
[1757823896439,0.002,4648.3,4648.2,3.90957042]
[1757823896625,0.002,4648.3,4648.2,7.66457042]
[1757823896830,0.002,4648.3,4648.2,7.95827042]
[1757823898731,0.3143,4648.3,4648.2,3.90957042]
[1757823899050,0.3143,4648.3,4648.2,7.66457042]
[1757823899251,0.002,4648.3,4648.2,7.66457042]
[1757823899432,0.3937,4648.6,4648.5,2.15123158]
[1757823899642,0.3937,4648.6,4648.5,5.90523158]
[1757823899952,0.706,4648.6,4648.5,6.01243158]
[1757823900337,0.3123,4648.6,4648.5,6.01243158]
[1757823901032,0.7883,4648.6,4648.5,6.01243158]
[1757823901228,0.082,4648.8,4648.7,2.15113902]
[1757823901659,0.3943,4648.8,4648.7,5.90413902]
[1757823903578,0.3943,4648.8,4648.7,6.19783902]
[1757823903579,0.082,4648.8,4648.7,6.19783902]
[1757823904077,0.082,4648.8,4648.7,6.64383902]
[1757823905064,0.082,4648.8,4648.7,6.19783902]
[1757823905261,0.082,4648.8,4648.7,7.13163902]
[1757823905665,0.082,4648.8,4648.7,10.13163902]
[1757823906636,1e-08,4648.8,4648.7,10.40473724]
[1757823906830,1e-08,4648.8,4648.7,11.19673724]
[1757823907031,0.476,4650.2,4648.7,11.19673724]
[1757823907032,0.476,4650.2,4650.1,2.15049138]
[1757823907237,0.4417,4650.5,4650.4,2.15035265]
[1757823907490,1.23,4650.5,4650.4,6.00855265]
[1757823908543,0.7883,4650.5,4650.4,6.00855265]
[1757823908747,0.3123,4650.5,4650.4,6.00855265]
[1757823909142,0.7883,4650.5,4650.4,6.00855265]
[1757823909338,0.08,4650.8,4650.7,2.15021394]
[1757823909534,0.08,4650.8,4650.7,6.00741394]
[1757823909735,0.3923,4650.8,4650.7,6.00741394]
[1757823911175,0.08,4650.8,4650.7,6.30111394]
[1757823911469,0.08,4650.8,4650.7,6.19391394]
[1757823912169,0.08,4650.8,4650.7,6.63991394]
[1757823912572,0.08,4650.8,4650.7,7.12771394]
[1757823912939,0.08,4650.8,4650.7,10.40081216]
[1757823913171,0.002,4651.0,4650.9,2.15012148]
[1757823913496,0.002,4651.0,4650.9,9.19272091]
[1757823913697,0.002,4651.0,4650.9,10.3987197]
[1757823914112,0.002,4651.0,4650.9,10.12562148]
[1757823914411,0.002,4651.0,4650.9,8.89712148]
[1757823914566,0.002,4651.0,4650.9,10.3977197]
[1757823914967,0.002,4651.8,4651.2,2.1499828]
[1757823915211,0.002,4651.8,4651.7,2.1497517]
[1757823915417,0.002,4651.8,4651.7,5.8967517]
[1757823915586,0.002,4651.8,4651.7,6.1904517]
[1757823915899,0.002,4651.8,4651.7,5.8967517]
[1757823916103,0.002,4651.8,4651.7,6.2110517]
[1757823916463,0.002,4652.3,4652.2,2.14952065]
[1757823916688,0.002,4652.3,4652.2,7.54552065]
[1757823916898,0.002,4652.3,4652.2,7.85982065]
[1757823917399,0.4944,4653.6,4652.7,2.14928965]
[1757823917599,0.4944,4653.6,4652.7,8.89528965]
[1757823917811,0.4944,4653.6,4652.7,9.65678965]
[1757823918020,0.4944,4654.3,4653.7,2.14880993]
[1757823918171,0.4944,4654.3,4653.8,3.745]
[1757823918375,0.2979,4653.9,4653.5,1.65]
[1757823918572,0.927,4653.8,4653.6,3.745]
[1757823918870,0.2979,4653.7,4653.6,3.745]
[1757823919105,1.2249,4653.7,4653.6,3.745]
[1757823919718,2.14846889,4654.5,4654.4,2.14849003]
[1757823919719,0.4944,4654.5,4654.4,2.14849003]
[1757823919900,0.4944,4654.5,4654.4,3.744]
[1757823919901,0.2979,4654.5,4654.4,3.744]
[1757823920223,1.2249,4654.5,4654.4,3.744]
[1757823920720,0.7923,4654.5,4654.4,3.744]
[1757823921026,0.08,4654.8,4654.7,2.14836616]
[1757823921177,0.08,4654.8,4654.7,5.89236616]
[1757823921375,0.3779,4654.8,4654.7,5.99956616]
[1757823921674,1.3049,4654.8,4654.7,3.8512]
[1757823921902,1.3049,4654.8,4654.7,0.1072]
[1757823922077,1.3049,4654.8,4654.4,3.743]
[1757823922408,0.927,4654.7,4654.5,0.814]
[1757823922574,0.927,4654.7,4654.3,3.8502]
[1757823922873,0.3779,4654.8,4654.3,3.8502]
[1757823922874,0.2979,4654.4,4654.3,3.8502]
[1757823923074,1.2249,4654.4,4654.3,3.8502]
[1757823924016,1.2249,4654.4,4654.3,0.1072]
[1757823924328,1.2249,4654.4,4654.3,3.8492]
[1757823925483,0.2979,4654.4,4654.3,0.1072]
[1757823925690,1.2249,4654.4,4654.3,3.8482]
[1757823925908,1.2249,4654.4,4654.3,0.1072]
[1757823926102,1.2249,4654.4,4654.3,3.8482]
[1757823926420,1.2249,4654.4,4654.3,0.1072]
[1757823927015,0.2979,4654.4,4654.3,2.2557508]
[1757823927217,0.5744,4654.8,4654.3,0.4215]
[1757823927431,0.08,4654.8,4654.4,2.14850464]
[1757823927630,0.2979,4654.5,4654.2,3.741]
[1757823928128,0.2979,4654.5,4654.4,2.25570464]
[1757823928620,0.2979,4654.5,4654.4,0.1072]
[1757823929028,0.2979,4654.5,4654.4,2.25570464]
[1757823929806,0.08,4654.8,4654.5,2.14841808]
[1757823930011,0.08,4654.8,4654.4,0.4055]
[1757823930012,0.08,4654.8,4654.7,2.14836616]
[1757823930211,0.377,4654.8,4654.7,2.14836616]
[1757823930531,0.377,4654.8,4654.7,0.1072]
[1757823931098,1.2934,4654.8,4654.7,0.1072]
[1757823932434,0.377,4654.8,4654.7,0.1072]
[1757823932733,0.377,4654.8,4654.7,2.25556616]
[1757823933030,0.08,4654.8,4654.7,2.55386616]
[1757823933211,0.08,4654.8,4654.7,2.25556616]
[1757823933407,0.08,4654.8,4654.7,2.55386616]
[1757823933609,0.08,4654.8,4654.7,3.47186616]
[1757823933942,0.08,4654.8,4654.7,3.49334982]
[1757823934847,0.08,4654.8,4654.7,2.57534982]
[1757823935247,0.08,4654.8,4654.7,3.47186616]
[1757823936741,0.08,4654.8,4654.7,7.20886616]
[1757823937064,0.08,4654.8,4654.7,3.47186616]
[1757823937260,0.08,4654.8,4654.7,7.20786616]
[1757823937453,0.08,4654.8,4654.7,6.72836616]
[1757823938268,0.08,4654.8,4654.7,7.20786616]
[1757823938861,0.08,4654.8,4654.7,2.25556616]
[1757823939050,0.08,4654.8,4654.7,5.99156616]
[1757823939253,0.08,4654.8,4654.7,6.28986616]
[1757823940167,0.08,4654.8,4654.7,6.72836616]
[1757823941167,0.08,4654.8,4654.7,6.72636616]
[1757823941368,0.08,4654.8,4654.7,5.98956616]
[1757823941979,0.08,4654.8,4654.7,2.25556616]
[1757823942134,0.08,4654.8,4654.7,6.28786616]
[1757823943665,0.08,4654.8,4654.7,2.55386616]
[1757823943845,0.08,4654.8,4654.7,4.0323]
[1757823944169,0.08,4654.8,4654.7,6.18066616]
[1757823945169,0.08,4654.8,4654.7,4.0323]
[1757823945358,0.08,4654.8,4654.4,3.79746205]
[1757823945562,0.8601,4654.8,4654.5,5.88145557]
[1757823945872,0.4959,4654.7,4654.6,3.733]
[1757823946073,0.7854,4654.7,4654.6,5.88141232]
[1757823946270,0.7854,4654.7,4654.6,3.733]
[1757823946445,0.7854,4654.7,4654.6,5.88141232]
[1757823946648,0.7854,4654.7,4654.6,2.14841232]
[1757823946846,0.7854,4654.7,4654.6,3.732]
[1757823948671,1.2588,4654.7,4654.6,3.732]
[1757823948879,1.2588,4654.7,4654.5,2.1484225]
[1757823949175,1.2588,4654.7,4654.6,5.87941232]
[1757823949390,0.7854,4654.7,4654.6,3.731]
[1757823949747,0.2895,4654.7,4654.6,3.731]
[1757823950053,0.2895,4654.7,4654.6,5.87939678]
[1757823950360,0.082,4654.8,4654.6,5.87939678]
[1757823950361,0.082,4654.8,4654.7,2.14836616]
[1757823950774,0.082,4654.8,4654.7,2.43356616]
[1757823951979,0.082,4654.8,4654.7,2.14836616]
[1757823952678,0.3859,4654.8,4654.7,2.14836616]
[1757823952978,0.3859,4654.8,4654.7,3.73]
[1757823953143,0.082,4654.8,4654.7,3.73]
[1757823953767,0.3859,4654.8,4654.7,3.73]
[1757823954052,0.3859,4654.8,4654.7,5.98556616]
[1757823954658,0.3859,4654.8,4654.7,3.8372]
[1757823955542,0.3859,4654.8,4654.7,5.98556616]
[1757823956374,0.3859,4654.8,4654.7,5.98456616]
[1757823956975,1.3377,4654.8,4654.7,5.98356616]
[1757823957346,0.8664,4654.8,4654.7,5.98356616]
[1757823957551,0.3859,4654.8,4654.7,5.98356616]
[1757823958216,0.082,4654.8,4654.7,6.29656616]
[1757823959250,0.082,4654.8,4654.7,5.98356616]
[1757823959775,0.082,4654.8,4654.7,3.8352]
[1757823959965,0.3859,4654.8,4654.7,3.8352]
[1757823960162,0.3859,4654.8,4654.7,5.98256616]
[1757823960571,0.3859,4654.8,4654.7,3.8342]
[1757823960771,0.3859,4654.8,4654.7,5.98256616]
[1757823961889,0.3859,4654.8,4654.7,3.8342]
[1757823962183,0.3859,4654.8,4654.7,5.98256616]
[1757823962551,0.3859,4654.8,4654.7,3.8342]
[1757823962759,0.3859,4654.8,4654.7,5.98256616]
[1757823963353,0.082,4654.8,4654.7,5.98256616]
[1757823964284,0.082,4654.8,4654.7,7.19836616]
[1757823966462,0.082,4654.8,4654.7,2.56856616]
[1757823966668,0.082,4654.8,4654.7,6.74486616]
[1757823966869,0.082,4654.8,4654.7,7.19636616]
[1757823969888,0.082,4654.8,4654.7,10.19636616]
[1757823971180,0.082,4654.8,4654.7,10.98836616]
[1757823971380,0.002,4655.3,4655.2,2.14813541]
[1757823971581,0.002,4655.3,4655.2,5.87113541]
[1757823971780,0.002,4655.3,4655.2,7.19413541]
[1757823974398,0.002,4655.3,4655.2,10.19413541]
[1757823976596,0.002,4655.3,4655.2,9.74263541]
[1757823977104,0.3173,4655.3,4655.2,5.25533541]
[1757823977270,1.2529,4655.3,4655.2,2.25533541]
[1757823977601,1.2529,4655.3,4655.2,5.97533541]
[1757823978013,1.2529,4655.3,4655.2,2.25533541]
[1757823978312,1.2529,4655.3,4655.2,5.97533541]
[1757823979200,0.3173,4655.3,4655.2,5.97533541]
[1757823981618,0.3173,4655.3,4655.2,3.8272]
[1757823981792,1.2529,4655.3,4655.2,3.8262]
[1757823982006,1.2529,4655.3,4655.2,3.8252]
[1757823982396,1.2529,4655.3,4655.2,0.1072]
[1757823986020,3.40098927,4655.3,4654.8,0.001]
[1757823986577,2.14814485,4655.2,4654.8,0.001]
[1757823986985,0.3153,4654.9,4654.8,0.001]
[1757823987483,1.2509,4654.9,4654.8,0.001]
[1757823990994,0.7875,4654.9,4654.8,0.001]
[1757823991818,1.2509,4654.9,4654.8,0.001]
[1757823994388,0.3153,4654.9,4654.8,0.001]
[1757823994593,0.002,4655.3,4654.8,0.2995]
[1757823994891,0.3153,4654.9,4654.8,0.001]
[1757823995317,0.7875,4654.9,4654.8,0.1082]
[1757823995518,1.2509,4654.9,4654.8,0.1082]
[1757823995706,1.2509,4654.9,4654.8,0.001]
[1757823995923,3.39917386,4654.9,4654.8,0.001]
[1757823998116,7.11217386,4654.9,4654.8,0.001]
[1757823998309,4.9639,4654.9,4654.8,0.001]
[1757823998517,7.11217386,4654.9,4654.8,0.001]
[1757823998928,4.9639,4654.9,4654.8,0.001]
[1757823999337,7.11217386,4654.9,4654.8,0.001]
[1757823999545,4.9639,4654.9,4654.8,0.001]
[1757824000737,7.11217386,4654.9,4654.8,0.001]
[1757824000933,4.9639,4654.9,4654.8,0.001]
[1757824001904,1.7552,4655.2,4654.8,0.001]
[1757824002103,3.712,4655.1,4654.8,0.2995]
[1757824002335,3.712,4655.1,4654.8,0.001]
[1757824002537,0.3153,4654.9,4654.8,0.001]
[1757824003038,0.3173,4654.9,4654.8,0.001]
[1757824003532,1.2529,4654.9,4654.8,0.001]
[1757824004730,0.3173,4654.9,4654.8,0.001]
[1757824005035,0.002,4654.9,4654.8,0.2995]
[1757824005639,0.002,4654.9,4654.8,0.001]
[1757824009215,0.002,4654.9,4654.8,1.2163]
[1757824009415,0.002,4654.9,4654.8,0.7429]
[1757824009618,0.002,4654.9,4654.8,0.2913]
[1757824010544,0.3042,4654.9,4654.8,0.001]
[1757824012774,0.002,4654.9,4654.8,0.2909]
[1757824014582,0.002,4654.9,4654.8,0.001]
[1757824015553,0.3143,4654.9,4654.8,0.001]
[1757824016144,0.002,4654.9,4654.8,0.001]
[1757824016867,0.3143,4654.9,4654.8,0.001]
[1757824020151,0.002,4654.9,4654.8,0.2909]
[1757824020532,0.002,4654.9,4654.8,2.87292001]
[1757824020732,0.002,4654.9,4654.8,3.32742001]
[1757824021025,0.002,4654.9,4654.8,0.7454]
[1757824021230,0.002,4654.9,4654.8,1.1791]
[1757824021462,0.002,4654.9,4654.8,0.7246]
[1757824022868,0.002,4654.9,4654.8,3.34890321]
[1757824023067,0.002,4654.9,4654.8,3.32742001]
[1757824024567,0.002,4654.9,4654.8,3.34890321]
[1757824025060,0.002,4654.9,4654.8,3.32742001]
[1757824025262,0.002,4654.9,4654.8,33.32742001]
[1757824026175,0.002,4654.9,4654.8,3.32742001]
[1757824030965,0.002,4654.9,4654.8,6.32742001]
[1757824031590,0.002,4654.9,4654.8,6.9718904]
[1757824036197,0.002,4654.9,4654.8,7.24498862]
[1757824036400,0.002,4654.9,4654.8,6.9718904]
[1757824037794,0.002,4654.9,4654.8,6.0836904]
[1757824038100,0.002,4654.9,4654.8,9.13722001]
[1757824038953,0.002,4654.9,4654.8,5.43922001]
[1757824039254,0.002,4654.9,4654.8,9.13722001]
[1757824039453,0.002,4654.9,4654.8,2.43922001]
[1757824039653,0.3108,4654.9,4654.8,5.84632001]
[1757824040061,0.3108,4654.9,4654.8,2.14932001]
[1757824040384,0.3108,4654.9,4654.8,5.84632001]
[1757824040687,0.002,4654.9,4654.8,6.15352001]
[1757824041266,0.002,4654.9,4654.8,6.59102001]
[1757824043392,0.002,4654.9,4654.8,6.15352001]
[1757824044300,0.002,4654.9,4654.8,7.06002001]
[1757824045091,0.002,4654.9,4654.8,6.59102001]
[1757824045292,0.002,4654.9,4654.8,6.15352001]
[1757824046600,0.3108,4654.9,4654.8,5.84432001]
[1757824048995,0.3108,4654.9,4654.8,2.14932001]
[1757824049498,0.3108,4654.9,4654.8,3.695]
[1757824049499,1.2046,4654.9,4654.8,3.695]
[1757824049799,1.2046,4654.9,4654.8,0.001]
[1757824055109,3.35287386,4654.9,4654.8,0.001]
[1757824057010,1.2046,4654.9,4654.8,0.001]
[1757824057380,3.35287386,4654.9,4654.8,0.001]
[1757824064594,4.14487386,4654.9,4654.8,0.001]
[1757824064793,7.14487386,4654.9,4654.8,0.001]
[1757824065012,7.26413237,4654.9,4654.8,0.001]
[1757824066498,8.55513237,4654.9,4654.8,0.001]
[1757824067530,8.86087284,4654.9,4654.8,0.001]
[1757824068431,9.31832408,4654.9,4654.8,0.001]
[1757824069106,8.86087284,4654.9,4654.8,0.001]
[1757824069429,12.54887284,4654.9,4654.8,0.001]
[1757824069640,13.00632408,4654.9,4654.8,0.001]
[1757824071629,15.68810205,4654.9,4654.8,0.001]
[1757824072238,15.23065081,4654.9,4654.8,0.001]
[1757824074850,12.44176414,4654.9,4654.8,0.001]
[1757824075728,12.52775393,4654.9,4654.8,0.001]
[1757824076349,8.83975393,4654.9,4654.8,0.001]
[1757824076556,12.52575393,4654.9,4654.8,0.001]
[1757824077635,12.09035393,4654.9,4654.8,0.001]
[1757824077838,12.52755393,4654.9,4654.8,0.001]
[1757824078236,9.04052216,4654.9,4654.8,0.001]
[1757824078446,9.04052216,4654.9,4654.8,0.295]
[1757824078631,9.83252216,4654.9,4654.8,0.7522]
[1757824079328,9.83228544,4654.9,4654.8,0.295]
[1757824079726,5.35528544,4654.9,4654.8,0.295]
[1757824080030,2.15027386,4654.9,4654.8,1.2343]
[1757824080259,3.687,4654.9,4654.8,1.2343]
[1757824081166,6.687,4654.9,4654.8,1.2343]
[1757824081336,5.83527386,4654.9,4654.8,1.2343]
[1757824081541,3.687,4654.9,4654.8,1.2343]
[1757824081744,0.002,4654.9,4654.8,1.2343]
[1757824081977,3.7932,4654.9,4654.8,1.2343]
[1757824083472,3.7922,4654.9,4654.8,1.2343]
[1757824086187,0.1092,4654.9,4654.8,1.2343]
[1757824086485,3.684,4654.9,4654.8,1.2343]
[1757824090687,0.002,4654.9,4654.8,1.2343]
[1757824090849,3.683,4654.9,4654.8,1.2343]
[1757824091574,0.002,4654.9,4654.8,1.2343]
[1757824091748,3.683,4654.9,4654.8,1.2343]